fUSD/lending_fUSD_20240725
["ID","MTS","AMOUNT","RATE_DAILY","PERIOD"]
[333200335,1721940643212,-23629.63381825,0.00011,2]
[333200336,1721940643223,-17808.97431362,0.00011,2]
[333200338,1721940643234,-942.81870035,0.00011,2]
[333200339,1721940643245,-569.73,0.00011,2]
[333200340,1721940643256,-1810.3504017,0.00011,2]
[333200341,1721940643267,-2847.59268996,0.00011,2]
[333200342,1721940643279,-10587.14206581,0.00011,2]
[333200343,1721940643295,-925.21,0.00010979,2]
[333200344,1721940643304,-117127.27760997,0.00011,2]
[333200345,1721940643316,-276.03969957,0.00011,2]
[333200346,1721940643327,-400.0,0.00011,2]
[333200352,1721940645950,-371.9075,0.00010979,2]
[333200355,1721940646293,-553.3025,0.00010979,2]
[333200356,1721940646303,-925.21,0.00010979,2]
[333200358,1721940646313,-925.21,0.00010979,2]
[333200360,1721940646323,-526.57140775,0.00010979,2]
[333200362,1721940646334,-398.63859225,0.00010979,2]
[333200364,1721940646344,-925.21,0.00010979,2]
[333200366,1721940646353,-925.21,0.00010979,2]
[333200368,1721940646363,-925.21,0.00010979,2]
[333200370,1721940646372,-925.21,0.00010979,2]
[333200372,1721940646382,-925.21,0.00010979,2]
[333200374,1721940646391,-6050.61415867,0.00011,2]
[333200376,1721940646403,-877.554818,0.00011,2]
[333200379,1721940646416,-414.36,0.00011,2]
[333200381,1721940646427,-575.55197003,0.00011,2]
[333200383,1721940646438,-3298.64723075,0.00011,2]
[333200385,1721940646449,-1407.31275459,0.00011,2]
[333200387,1721940646460,-580.21327524,0.00011,2]
[333200389,1721940646471,-1752.76552641,0.00011,2]
[333200391,1721940646482,-1211.81700269,0.00011,2]
[333200392,1721940646493,-32540.68456682,0.00011,2]
[333200393,1721940646505,-18666.72537751,0.00011,2]
[333200394,1721940646516,-2247.44095932,0.00011,2]
[333200395,1721940646527,-354.37716682,0.00011,2]
[333200396,1721940646539,-784.08495585,0.00011,2]
[333200397,1721940646550,-1142.59442236,0.00011,2]
[333200398,1721940646561,-507.66970982,0.00011,2]
[333200399,1721940646572,-1711.97958983,0.00011,2]
[333200400,1721940646583,-504.6728537,0.00011,2]
[333200401,1721940646594,-5571.95690293,0.00011,2]
[333200402,1721940646606,-420.62036438,0.00011,2]
[333200403,1721940646617,-4823.36786804,0.00011,2]
[333200405,1721941035276,1000.0,0.00016,120]
[333200406,1721941109260,100000.0,0.00016,120]
[333200407,1721941122474,100000.0,0.00016,120]
[333200408,1721941173149,100000.0,0.00016,120]
[333200409,1721941356136,90000.0,0.00015,30]
[333200410,1721941469268,-150.0,0.00021514,120]
[333200411,1721941469291,-150.0,0.00021536,120]
[333200412,1721941486291,-2275.43,0.00018849,30]
[333200413,1721941486327,-755.18240053,0.00019178,30]
[333200414,1721941486354,-5013.11239,0.000192,30]
[333200415,1721941486376,-755.18240053,0.0001926,30]
[333200416,1721941486399,-755.18240053,0.00019342,30]
[333200417,1721941486420,-755.18240053,0.00019425,30]
[333200418,1721941486442,-755.18240053,0.00019507,30]
[333200419,1721941486464,-755.18240053,0.00019589,30]
[333200420,1721941486486,-755.18240053,0.00019671,30]
[333200421,1721941486507,-755.18240053,0.00019753,30]
[333200422,1721941486530,-755.18240053,0.00019836,30]
[333200423,1721941486554,-755.18240053,0.00019918,30]
[333200424,1721941486579,-755.18240053,0.0002,30]
[333200425,1721941486601,-755.18240053,0.00020082,30]
[333200426,1721941486621,-755.18240053,0.00020137,30]
[333200427,1721941486642,-755.18240053,0.00020219,30]
[333200428,1721941486664,-755.18240053,0.00020301,30]
[333200429,1721941486687,-151.0,0.00020887,30]
[333200430,1721941486712,-206.72160205,0.000219,30]
[333200446,1721941832883,-1124.32,8.219e-05,2]
[333200447,1721941832893,-532.35,9.849e-05,2]
[333200448,1721941832903,-300.0,9.856e-05,2]
[333200449,1721941832912,-2125.38851106,9.857e-05,2]
[333200450,1721941832980,-505.38615579,9.857e-05,2]
[333200451,1721941832992,-641.43342479,9.857e-05,2]
[333200454,1721941833489,-254.1101868,9.857e-05,2]
[333200455,1721941833536,-12523.13172156,9.857e-05,2]
[333200456,1721941833548,-1000.0,9.888e-05,2]
[333200457,1721941833558,-250.0,9.888e-05,2]
[333200458,1721941833568,-212.02,9.891e-05,2]
[333200459,1721941833577,-159.11,9.902e-05,2]
[333200460,1721941833587,-159.11,9.951e-05,2]
[333200461,1721941833596,-1449.45668,0.00010296,2]
[333200462,1721941833606,-351.12,0.00010296,2]
[333200463,1721941833617,-1124.32,0.00010471,2]
[333200464,1721941833627,-150.0,0.00010478,2]
[333200465,1721941833637,-4872.07518634,0.00010771,2]
[333200466,1721941833647,-1833.03840416,0.0001078,2]
[333200467,1721941833657,-150.0,0.0001078,2]
[333200468,1721941833667,-24385.0,0.00010781,2]
[333200469,1721941833677,-1141.0418,0.000108,2]
[333200470,1721941833688,-212.9134,0.000108,2]
[333200471,1721941833697,-880.36704861,0.000108,2]
[333200472,1721941833708,-420.0,0.00010842,2]
[333200473,1721941833718,-150.169,0.0001085,2]
[333200474,1721941833729,-150.0,0.0001085,2]
[333200475,1721941833739,-150.0,0.0001085,2]
[333200476,1721941833750,-501.6026,0.00010858,2]
[333200477,1721941833760,-13019.15453013,0.00010868,2]
[333200478,1721941833774,-16813.98876987,0.00010868,2]
[333200479,1721941833784,-2823.61123013,0.00010895,2]
[333200480,1721941833798,-11303.12366987,0.00010895,2]
[333200481,1721941833809,-1000.0,0.000109,2]
[333200482,1721941833819,-2500.0,0.000109,2]
[333200483,1721941833829,-2908.32449351,0.000109,2]
[333200484,1721941833841,-4528.86016213,0.000109,2]
[333200485,1721941833861,-62.81534436,0.000109,2]
[333200486,1721941833871,-150.11359404,0.000109,2]
[333200487,1721941833881,-613.36973826,0.000109,2]
[333200488,1721941833893,-412.61335126,0.000109,2]
[333200489,1721941833909,-716.18874666,0.000109,2]
[333200490,1721941833921,-479.40777652,0.000109,2]
[333200491,1721941833933,-627.42309232,0.000109,2]
[333200492,1721941833946,-619.14994573,0.000109,2]
[333200493,1721941833971,-2564.27809117,0.000109,2]
[333200494,1721941833988,-2523.83311305,0.000109,2]
[333200512,1721941838101,-20322.00475,0.000109,2]
[333200514,1721941838113,-2001.77799096,0.000109,2]
[333200516,1721941838124,-1003.85955005,0.000109,2]
[333200522,1721941838382,-9420.28367297,0.000109,2]
[333200545,1721941840297,-357.32,0.00010429,2]
[333200546,1721941840308,-794.31,0.00010771,2]
[333200547,1721941840317,-366.35469057,0.00010771,2]
[333200548,1721941840329,-427.95530943,0.00010771,2]
[333200549,1721941840338,-794.31,0.00010771,2]
[333200550,1721941840347,-794.31,0.0001079,2]
[333200551,1721941840356,-281.18970657,0.0001079,2]
[333200552,1721941840377,-513.12029343,0.0001079,2]
[333200553,1721941840386,-794.31,0.00010848,2]
[333200554,1721941840395,-794.31,0.00010858,2]
[333200555,1721941840405,-794.31,0.00010858,2]
[333200556,1721941840414,-794.31,0.00010858,2]
[333200557,1721941840424,-1173.69006925,0.000109,2]
[333200558,1721941840435,-16378.8625,0.000109,2]
[333200559,1721941842567,-598.4106,0.000108,2]
[333200560,1721941842576,-794.31,0.00010858,2]
[333200561,1721941842587,-794.31,0.00010858,2]
[333200562,1721941842596,-794.31,0.00010858,2]
[333200563,1721941842605,-776.08282184,0.00010858,2]
[333200564,1721941842622,-18.22717816,0.00010858,2]
[333200565,1721941842632,-794.31,0.00010858,2]
[333200566,1721941842642,-794.31,0.00010858,2]
[333200567,1721941842652,-794.31,0.00010858,2]
[333200568,1721941842663,-794.31,0.00010858,2]
[333200569,1721941842672,-22946.13282184,0.000109,2]
[333200638,1721941843150,-794.31,0.00010858,2]
[333200640,1721941843160,-760.84051949,0.00010858,2]
[333200651,1721941843211,-33.46948051,0.00010858,2]
[333200654,1721941843220,-6864.59036004,0.000109,2]
[333200655,1721941843229,-172.6576321,0.000109,2]
[333200657,1721941843239,-649.62967035,0.000109,2]
[333200659,1721941843248,-273.7,0.00010904,2]
[333200661,1721941843258,-500.0,0.00010959,2]
[333200663,1721941843267,-250.0,0.00010959,2]
[333200665,1721941843276,-500.0,0.00010988,2]
[333200667,1721941843286,-240.6829777,0.00010998,2]
[333200669,1721941843295,-500.0,0.00010999,2]
[333200671,1721941843307,-500.0,0.00010999,2]
[333200673,1721941843317,-500.0,0.00010999,2]
[333200675,1721941843326,-500.0,0.00010999,2]
[333200676,1721941843335,-518.03007033,0.00010999,2]
[333200678,1721941843345,-603.16423991,0.00010999,2]
[333200680,1721941843354,-2256.2841538,0.00010999,2]
[333200682,1721941843363,-424.15103457,0.00010999,2]
[333200684,1721941843372,-592.0,0.00011,2]
[333200686,1721941843382,-6444.1751205,0.00011,2]
[333200688,1721941843393,-7003.03071917,0.00011,2]
[333200690,1721941843405,-500.0,0.00011,2]
[333200692,1721941843416,-380.80188952,0.00011,2]
[333200694,1721941843427,-8669.56663044,0.00011,2]
[333200696,1721941843438,-9858.86818663,0.00011,2]
[333200698,1721941843451,-425.4581178,0.00011,2]
[333200700,1721941843462,-705.59991999,0.00011,2]
[333200703,1721941843482,-295.4355325,0.00010858,2]
[333200705,1721941843493,-498.8744675,0.00010858,2]
[333200707,1721941843503,-6313.59802178,0.00011,2]
[333200709,1721941843517,-380.00340275,0.00011,2]
[333200992,1721941846287,-689.65038616,0.00010858,2]
[333201009,1721941846367,-104.65961384,0.00010858,2]
[333201013,1721941846377,-794.31,0.00010858,2]
[333201016,1721941846387,-794.31,0.00010858,2]
[333201019,1721941846396,-794.31,0.00010858,2]
[333201022,1721941846406,-794.31,0.00010858,2]
[333201025,1721941846416,-794.31,0.00010885,2]
[333201028,1721941846426,-794.31,0.00010885,2]
[333201031,1721941846435,-794.31,0.00010885,2]
[333201034,1721941846447,-85785.97682368,0.00011,2]
[333201036,1721941846457,-40689.9998426,0.00011,2]
[333201038,1721941846468,-1185.57,0.00011,2]
[333201040,1721941846480,-1530.01147596,0.00011,2]
[333201047,1721941846540,-404.48230813,0.00010885,2]
[333201050,1721941846552,-389.82769187,0.00010885,2]
[333201052,1721941846562,-1364.02729211,0.00011,2]
[333201054,1721941846577,-347.83,0.00011,2]
[333201057,1721941846593,-1754.97,0.00011,2]
[333201059,1721941846604,-2504.14673226,0.00011,2]
[333201061,1721941846615,-6584.9367,0.00011,2]
[333201063,1721941846627,-474817.41095474,0.00011,2]
[333201065,1721941846639,-1272.90305297,0.00011,2]
[333201068,1721941846654,-783.32576,0.00011,2]
[333201070,1721941846665,-380.34838437,0.00011,2]
[333201072,1721941846676,-861.89995876,0.00011,2]
[333201074,1721941846687,-729.12371714,0.00011,2]
[333201077,1721941846704,-794.31,0.00010885,2]
[333201078,1721941846713,-1860.63895016,0.00011,2]
[333201081,1721941846725,-1222.58142477,0.00011,2]
[333201083,1721941846736,-3594.95279037,0.00011,2]
[333201085,1721941846747,-6775.73848486,0.00011,2]
[333201087,1721941846759,-948.90000057,0.00011,2]
[333201089,1721941846771,-15031.09902767,0.00011,2]
[333201091,1721941846782,-1400.55359634,0.00011,2]
[333201093,1721941846794,-1063.64863485,0.00011,2]
[333201095,1721941846806,-1044.53300043,0.00011,2]
[333201097,1721941846817,-2179.41794027,0.00011,2]
[333202458,1721943033302,-1043.98,8.219e-05,2]
[333202459,1721943033313,-200.0,8.22e-05,2]
[333202460,1721943033323,-206.02,8.999e-05,2]
[333202461,1721943033335,-93.98,8.999e-05,2]
[333202462,1721943033345,-150.0,8.999e-05,2]
[333202463,1721943033355,-15704.706489,9e-05,2]
[333202464,1721943033367,-308.19521304,9e-05,2]
[333202465,1721943033405,-531.77659901,9e-05,2]
[333202466,1721943033474,-285.993,9e-05,2]
[333202467,1721943033486,-5041.91788826,9e-05,2]
[333202468,1721943033498,-3957.46749989,9e-05,2]
[333202470,1721943033559,-328.21590955,9e-05,2]
[333202472,1721943033573,-1421.0333,9e-05,2]
[333202474,1721943033584,-1699.67601483,9e-05,2]
[333202491,1721943038886,-75417.20648224,9e-05,2]
[333202492,1721943038895,-420.0,9.899e-05,2]
[333202494,1721943038905,-3572.76,9.959e-05,2]
[333202495,1721943038915,-38999.999998,0.0001,2]
[333202496,1721943038931,-201.95,0.00010057,2]
[333202497,1721943038943,-550.12,0.00010105,2]
[333202498,1721943038953,-10000.0,0.00010319,2]
[333202499,1721943038962,-1000.0,0.00010321,2]
[333202500,1721943038972,-5545.94036155,0.000104,2]
[333202501,1721943038981,-1043.98,0.00010481,2]
[333202502,1721943038990,-975.2,0.00010599,2]
[333202503,1721943039000,-332.0033,0.000106,2]
[333202504,1721943039010,-529.74,0.000106,2]
[333202505,1721943039019,-420.03,0.000106,2]
[333202506,1721943039029,-355.69,0.000106,2]
[333202507,1721943039039,-150.0,0.000106,2]
[333202508,1721943039048,-7500.0,0.000106,2]
[333202509,1721943039059,-959.20007468,0.000106,2]
[333202510,1721943039068,-556.01,0.0001069,2]
[333202511,1721943039078,-556.01,0.0001069,2]
[333202512,1721943039088,-556.01,0.0001069,2]
[333202513,1721943039098,-556.01,0.0001069,2]
[333202514,1721943039108,-556.01,0.0001069,2]
[333202515,1721943039118,-556.01,0.0001069,2]
[333202516,1721943039128,-556.01,0.0001069,2]
[333202517,1721943039138,-556.01,0.0001069,2]
[333202518,1721943039148,-556.01,0.0001069,2]
[333202519,1721943039158,-556.01,0.0001069,2]
[333202520,1721943039168,-556.01,0.0001069,2]
[333202521,1721943039177,-556.01,0.0001069,2]
[333202522,1721943039187,-1123.42877866,0.00010699,3]
[333202523,1721943039197,-880298.92537979,0.000107,2]
[333202524,1721943039209,-2398.32840993,0.000107,2]
[333202525,1721943039236,-1119.03960009,0.000107,2]
[333202526,1721943040294,-2641.9738249,0.000107,2]
[333202528,1721943040306,-1652.00496186,0.000107,2]
[333202529,1721943040318,-319.27963649,0.000107,2]
[333202530,1721943040374,-343.1495816,0.000107,2]
[333202531,1721943040389,-28158.81100673,0.000107,2]
[333202532,1721943040466,-386.295,0.000107,2]
[333202533,1721943040478,-342.008,0.000107,2]
[333202534,1721943040579,-68108.04000002,0.000107,2]
[333202535,1721943040590,-4623.49313151,0.000107,2]
[333202536,1721943040613,-1720.39690758,0.000107,2]
[333202537,1721943040748,-142513.39063544,0.000107,2]
[333202539,1721943040760,-638.58000001,0.000107,2]
[333202813,1721943043388,-250.48040969,0.000107,2]
[333202814,1721943043399,-803.1817991,0.000107,2]
[333202815,1721943043410,-326.99393954,0.000107,2]
[333202816,1721943043423,-699.5899999,0.000107,2]
[333202817,1721943043438,-1192.9975616,0.000107,2]
[333202818,1721943043449,-402.1328551,0.000107,2]
[333202819,1721943043463,-334.37839027,0.000107,2]
[333202820,1721943043475,-7699.38488226,0.000107,2]
[333202821,1721943043486,-329.65,0.000107,2]
[333202823,1721943043568,-682.23,0.000107,2]
[333202825,1721943043579,-411.94805953,0.000107,2]
[333202827,1721943043590,-7490.68946234,0.000107,2]
[333202829,1721943043601,-386.68142865,0.000107,2]
[333202933,1721943046395,-7500.0,0.000106,2]
[333202934,1721943046405,-480.24417563,0.000107,2]
[333202936,1721943046417,-546.006,0.000107,2]
[333202940,1721943046519,-6188.57226742,0.000107,2]
[333202941,1721943046530,-812.13569489,0.000107,2]
[333202942,1721943046541,-948.66014233,0.000107,2]
[333202943,1721943046586,-665.03216072,0.000107,2]
[333202944,1721943046598,-7496.12959922,0.000107,2]
[333202945,1721943046609,-264.30000001,0.000107,2]
[333202946,1721943046621,-717.77404361,0.000107,2]
[333202947,1721943046676,-1647.41004933,0.000107,2]
[333202948,1721943046691,-16755.0,0.000107,2]
[333202949,1721943046702,-5249.05671973,0.000107,2]
[333203911,1721944234680,-977.45,8.219e-05,2]
[333203912,1721944234690,-322.507321,9.182e-05,2]
[333203913,1721944234700,-229.62,9.229e-05,2]
[333203914,1721944234710,-43.24763548,9.248e-05,2]
[333203915,1721944234728,-256.75236452,9.248e-05,2]
[333203916,1721944234737,-1546.74104302,9.249e-05,2]
[333203917,1721944234782,-4087.53372105,9.249e-05,2]
[333203918,1721944234794,-267.23393513,9.249e-05,2]
[333203919,1721944234837,-3288.4,9.249e-05,2]
[333203920,1721944234984,-5291.3013008,9.249e-05,2]
[333203921,1721944234994,-250.0,9.35e-05,2]
[333203922,1721944235005,-1027.37,9.363e-05,2]
[333203923,1721944235015,-14987.87,9.42e-05,2]
[333203924,1721944235025,-1000.0,9.511e-05,2]
[333203925,1721944235035,-150.0,9.562e-05,2]
[333203926,1721944235045,-170.89,9.579e-05,2]
[333203927,1721944235054,-3133.07,9.67e-05,2]
[333203928,1721944235064,-153.57996655,9.789e-05,2]
[333203929,1721944235074,-179.21,9.877e-05,2]
[333203930,1721944235083,-150.0,9.899e-05,2]
[333203931,1721944235093,-5510.06,9.9e-05,2]
[333203932,1721944235102,-526.46,9.9e-05,2]
[333203933,1721944235112,-299.99,9.9e-05,2]
[333203934,1721944235122,-150.99,9.9e-05,2]
[333203935,1721944235132,-455.45,9.9e-05,2]
[333203936,1721944235142,-300.0,9.9e-05,3]
[333203937,1721944235151,-23440.78630092,9.99e-05,2]
[333203938,1721944235161,-499.99,0.0001,2]
[333203939,1721944235171,-600.0,0.0001,3]
[333203940,1721944235181,-658.01,0.00010055,2]
[333203941,1721944235190,-833.79,0.00010055,2]
[333203942,1721944235200,-833.79,0.00010055,2]
[333203947,1721944235210,-420.24,0.00010055,2]
[333203948,1721944235429,-420.24,0.00010055,2]
[333203949,1721944235439,-231.21,0.00010055,2]
[333203950,1721944235449,-420.24,0.00010055,2]
[333203951,1721944235459,-331.27,0.00010055,2]
[333203952,1721944235468,-1000.0,0.000101,3]
[333203953,1721944235478,-150.0,0.00010192,2]
[333203954,1721944235488,-355.87,0.00010192,2]
[333203955,1721944235498,-165.34,0.00010192,2]
[333203956,1721944235508,-217.08,0.00010192,2]
[333203957,1721944235517,-150.96,0.00010192,2]
[333203958,1721944235527,-425.58,0.00010192,2]
[333203959,1721944235536,-151.1,0.00010192,2]
[333203960,1721944235545,-529.84,0.00010192,2]
[333203961,1721944235555,-150.0,0.00010192,2]
[333203962,1721944235564,-425.58,0.00010192,2]
[333203963,1721944235574,-165.34,0.00010192,2]
[333203964,1721944235583,-150.0,0.00010192,2]
[333203965,1721944235593,-355.87,0.00010192,2]
[333203966,1721944235603,-425.58,0.00010192,2]
[333203967,1721944235612,-150.0,0.00010192,2]
[333203968,1721944235622,-165.34,0.00010192,2]
[333203969,1721944235632,-355.87,0.00010192,2]
[333203970,1721944235642,-150.0,0.00010192,2]
[333203971,1721944235652,-425.58,0.00010192,2]
[333203972,1721944235661,-150.0,0.00010192,2]
[333203973,1721944235671,-150.0,0.00010192,2]
[333203974,1721944235681,-355.87,0.00010192,2]
[333203975,1721944235691,-165.34,0.00010192,2]
[333203976,1721944235701,-355.87,0.00010192,2]
[333203977,1721944235710,-425.58,0.00010192,2]
[333203978,1721944235720,-150.0,0.00010192,2]
[333203979,1721944235730,-165.34,0.00010192,2]
[333203980,1721944235739,-150.0,0.00010192,2]
[333203981,1721944235748,-425.15,0.00010192,2]
[333203982,1721944235758,-150.0,0.00010192,2]
[333203983,1721944235767,-150.0,0.00010192,2]
[333203984,1721944235782,-165.34,0.00010192,2]
[333203985,1721944235791,-355.87,0.00010192,2]
[333203986,1721944235801,-165.34,0.00010192,2]
[333203987,1721944235811,-150.0,0.00010192,2]
[333203988,1721944235820,-355.87,0.00010192,2]
[333203989,1721944235830,-150.0,0.00010192,2]
[333203990,1721944235840,-150.0,0.00010192,2]
[333203991,1721944235850,-355.87,0.00010192,2]
[333203992,1721944235862,-150.0,0.00010192,2]
[333203993,1721944235874,-165.34,0.00010192,2]
[333203994,1721944235885,-150.0,0.00010192,2]
[333203995,1721944235901,-165.34,0.00010192,2]
[333203996,1721944235913,-150.0,0.00010192,2]
[333203997,1721944235924,-355.87,0.00010192,2]
[333203998,1721944235934,-1300.0,0.000102,3]
[333203999,1721944235947,-3175.6556,0.00010221,2]
[333204000,1721944235959,-1700.0,0.000103,3]
[333204001,1721944235972,-300.0,0.000104,3]
[333204002,1721944235983,-977.45,0.00010442,2]
[333204003,1721944235995,-30058.6576,0.000105,2]
[333204004,1721944236011,-300.0,0.000105,3]
[333204005,1721944236023,-2500.0,0.000105,2]
[333204006,1721944236034,-156.4355,0.0001059,2]
[333204007,1721944236045,-150.29633,0.00010593,2]
[333204008,1721944236055,-2477.48818308,0.000106,2]
[333204009,1721944236069,-2783.83701633,0.000106,2]
[333204014,1721944237559,-397.56493068,0.000106,2]
[333204015,1721944237571,-8467.84476991,0.000106,2]
[333204016,1721944237581,-10659.5032,0.000106,2]
[333204017,1721944237591,-500.0,0.000106,2]
[333204018,1721944237601,-184.52049765,0.000106,2]
[333204019,1721944237611,-1235.6588,0.000106,2]
[333204020,1721944237621,-15501.2049,0.000106,2]
[333204021,1721944237631,-25035.6063,0.000106,2]
[333204022,1721944237640,-2129.41138957,0.000106,2]
[333204023,1721944237651,-300.11965555,0.000106,2]
[333204024,1721944237662,-1522.57839701,0.000106,2]
[333204025,1721944237679,-1738.49995787,0.000106,2]
[333204026,1721944237688,-1859.06624629,0.000106,2]
[333204027,1721944237701,-579.46660205,0.000106,2]
[333204028,1721944237713,-876.62669098,0.000106,2]
[333204029,1721944237724,-1814.56851,0.000106,2]
[333204030,1721944237736,-4113.21141485,0.000106,2]
[333204031,1721944237758,-564.90903583,0.000106,2]
[333204032,1721944237769,-160.23878891,0.000106,2]
[333204033,1721944237782,-1105.7059,0.000106,2]
[333204034,1721944237792,-334.5742,0.000106,2]
[333204035,1721944237802,-1869.48533525,0.000106,2]
[333204036,1721944237814,-300.0,0.000106,3]
[333204037,1721944237824,-7500.0,0.000106,2]
[333204038,1721944237834,-220.84,0.00010603,2]
[333204039,1721944237844,-1000.0,0.00010699,2]
[333204040,1721944237855,-15689.81775362,0.000107,2]
[333204041,1721944237867,-186245.44172685,0.000107,2]
[333204042,1721944237879,-4414.93242347,0.000107,2]
[333204043,1721944237892,-2883.84825415,0.000107,2]
[333204044,1721944237902,-2011.41348,0.000107,2]
[333204049,1721944239693,-502.62768369,0.000106,2]
[333204050,1721944239705,-1357.4,0.000106,2]
[333204051,1721944239847,-619.89124135,0.000106,2]
[333204052,1721944239861,-2847.78365452,0.000106,2]
[333204053,1721944239893,-2172.29742044,0.000106,2]
[333204054,1721944239904,-60839.99657479,0.000107,2]
[333204055,1721944241106,-439.10667098,0.0001059,2]
[333204056,1721944241118,-50.18332902,0.0001059,2]
[333204057,1721944241130,-489.29,0.0001059,2]
[333204058,1721944241141,-483.77667098,0.0001059,2]
[333204059,1721944241243,-5.51332902,0.0001059,2]
[333204060,1721944241254,-489.29,0.0001059,2]
[333204061,1721944241263,-5.19667098,0.0001059,2]
[333204062,1721944241276,-313.637495,0.0001059,2]
[333204063,1721944241290,-170.45583402,0.0001059,2]
[333204064,1721944241299,-307.0308042,0.000107,2]
[333204065,1721944241311,-1107.68259837,0.000107,2]
[333204081,1721944242683,-489.29,0.0001059,2]
[333204082,1721944242693,-489.29,0.0001059,2]
[333204083,1721944242702,-489.29,0.0001059,2]
[333204084,1721944242712,-489.29,0.0001059,2]
[333204085,1721944242721,-489.29,0.0001059,2]
[333204086,1721944242730,-166273.48257795,0.000107,2]
[333204087,1721944242742,-2804.45,0.000107,2]
[333204088,1721944242766,-48249.09836178,0.000107,2]
[333204099,1721944246281,-150.0,0.00010192,2]
[333204101,1721944246291,-150.0,0.00010192,2]
[333204103,1721944246301,-355.87,0.00010192,2]
[333204105,1721944246311,-489.29,0.0001059,2]
[333204107,1721944246321,-489.29,0.0001059,2]
[333204109,1721944246333,-489.29,0.0001059,2]
[333204110,1721944246343,-489.29,0.00010689,2]
[333204111,1721944246353,-489.29,0.0001069,2]
[333204112,1721944246363,-489.29,0.0001069,2]
[333204113,1721944246374,-489.29,0.0001069,2]
[333204114,1721944246384,-489.29,0.0001069,2]
[333204115,1721944246393,-489.29,0.0001069,2]
[333204116,1721944246404,-2010.16315569,0.000107,2]
[333204117,1721944246417,-1702.62345,0.000107,2]
[333204118,1721944246428,-380.34541189,0.000107,2]
[333204119,1721944246439,-3685.53014299,0.000107,2]
[333204120,1721944246451,-1961.35601984,0.000107,2]
[333204121,1721944246463,-6317.86258978,0.000107,2]
[333204122,1721944246513,-730.27883011,0.000105,2]
[333204123,1721944246538,-3001.3,0.000105,2]
[333204124,1721944246585,-332.83,0.000105,2]
[333204125,1721944246597,-49205.57706989,0.000105,2]
[333204126,1721944246607,-489.29,0.0001069,2]
[333204127,1721944246617,-489.29,0.0001069,2]
[333204128,1721944246627,-239246.09353743,0.000107,2]
[333204218,1721945431828,-914.88,8.219e-05,2]
[333204219,1721945431838,-1131.42,9.535e-05,2]
[333204220,1721945431849,-566.02441227,9.54e-05,2]
[333204221,1721945431861,-791.29558773,9.54e-05,2]
[333204222,1721945431871,-1000.0,9.575e-05,2]
[333204223,1721945431881,-250.0,9.576e-05,2]
[333204224,1721945431890,-177.09,9.597e-05,2]
[333204225,1721945431900,-165.21,9.783e-05,2]
[333204226,1721945431909,-165.21,9.808e-05,2]
[333204227,1721945431919,-499.99,9.832e-05,2]
[333204228,1721945431929,-165.21,9.832e-05,2]
[333204229,1721945431939,-166.87,9.978e-05,2]
[333204230,1721945431949,-711.2,9.978e-05,2]
[333204231,1721945431959,-300.0,0.00010053,2]
[333204232,1721945431972,-150.0,0.00010054,2]
[333204233,1721945431982,-833.79,0.00010055,2]
[333204234,1721945431992,-420.24,0.00010055,2]
[333204235,1721945432002,-420.24,0.00010055,2]
[333204236,1721945432011,-833.79,0.00010055,2]
[333204237,1721945432021,-833.79,0.00010055,2]
[333204238,1721945432030,-420.24,0.00010055,2]
[333204239,1721945432040,-420.24,0.00010055,2]
[333204240,1721945432049,-833.79,0.00010055,2]
[333204241,1721945432059,-420.24,0.00010055,2]